[Event "*** Titled Tuesday Blitz"]
[Site "Chess.com"]
[Date "2020.05.26"]
[Round "8"]
[White "Paladin61"]
[Black "Danfii"]
[Result "1-0"]
[WhiteElo "2629"]
[BlackElo "2422"]
[TimeControl "180+1"]
[EndTime "11:41:34 PDT"]
[Termination "Paladin61 won by resignation"]

1. d4 {[%clk 0:02:58.6]} 1... Nf6 {[%clk 0:02:58.9]} 2. c4 {[%clk 0:02:58.6]}
2... e6 {[%clk 0:02:59.1]} 3. g3 {[%clk 0:02:58.8]} 3... c5 {[%clk 0:02:58.5]}
4. d5 {[%clk 0:02:57.2]} 4... exd5 {[%clk 0:02:59.4]} 5. cxd5 {[%clk 0:02:57.4]}
5... d6 {[%clk 0:03:00]} 6. Nc3 {[%clk 0:02:57.5]} 6... g6 {[%clk 0:03:00.2]} 7.
Bg2 {[%clk 0:02:57.8]} 7... Bg7 {[%clk 0:03:00.7]} 8. Nf3 {[%clk 0:02:58.1]}
8... O-O {[%clk 0:03:00.9]} 9. O-O {[%clk 0:02:58.4]} 9... Re8 {[%clk
0:03:00.8]} 10. Bf4 {[%clk 0:02:58]} 10... h6 {[%clk 0:03:00.4]} 11. Qc1 {[%clk
0:02:55.3]} 11... g5 {[%clk 0:02:58.2]} 12. Be3 {[%clk 0:02:55.3]} 12... Nbd7
{[%clk 0:02:47.8]} 13. h4 {[%clk 0:02:53.3]} 13... g4 {[%clk 0:02:47.7]} 14. Ne1
{[%clk 0:02:46.9]} 14... Kh7 {[%clk 0:02:44.2]} 15. Qc2+ {[%clk 0:02:36.8]}
15... Kg8 {[%clk 0:02:43.7]} 16. Qc1 {[%clk 0:02:35.6]} 16... Kh7 {[%clk
0:02:43.4]} 17. b4 {[%clk 0:01:48.7]} 17... b6 {[%clk 0:02:40.2]} 18. Nd3 {[%clk
0:01:37.4]} 18... Ne5 {[%clk 0:02:36.4]} 19. Nxe5 {[%clk 0:01:30.9]} 19... Rxe5
{[%clk 0:02:37.3]} 20. bxc5 {[%clk 0:01:26]} 20... bxc5 {[%clk 0:02:36.7]} 21.
Bf4 {[%clk 0:01:25.2]} 21... Re8 {[%clk 0:02:33.5]} 22. Nb5 {[%clk 0:01:07.1]}
22... Bf8 {[%clk 0:02:28.4]} 23. Qc2+ {[%clk 0:01:03.8]} 23... Kg8 {[%clk
0:02:24.5]} 24. Rab1 {[%clk 0:00:58.9]} 24... Ba6 {[%clk 0:02:11.7]} 25. Rfe1
{[%clk 0:00:55.2]} 25... Rb8 {[%clk 0:02:04.6]} 26. a4 {[%clk 0:00:51.2]} 26...
Qa5 {[%clk 0:01:50.3]} 27. Bd2 {[%clk 0:00:38.2]} 27... Qd8 {[%clk 0:01:49.7]}
28. e4 {[%clk 0:00:37.2]} 28... Qd7 {[%clk 0:01:36]} 29. Qc1 {[%clk 0:00:22.8]}
29... Kh7 {[%clk 0:01:27.9]} 30. Qc2 {[%clk 0:00:21.5]} 30... Kg8 {[%clk
0:01:27.1]} 31. Na3 {[%clk 0:00:18.6]} 31... c4 {[%clk 0:01:12.9]} 32. Bc3
{[%clk 0:00:13.1]} 32... Bg7 {[%clk 0:01:10.4]} 33. Bf1 {[%clk 0:00:09]} 33...
Rxb1 {[%clk 0:01:01.8]} 34. Nxb1 {[%clk 0:00:08.8]} 34... Qc7 {[%clk 0:00:34.1]}
35. Nd2 {[%clk 0:00:08.4]} 35... Rc8 {[%clk 0:00:25.2]} 36. Rb1 {[%clk
0:00:07.9]} 36... Nd7 {[%clk 0:00:24.8]} 37. Bxg7 {[%clk 0:00:07.3]} 37... Kxg7
{[%clk 0:00:25.7]} 38. Qc3+ {[%clk 0:00:07.5]} 38... Ne5 {[%clk 0:00:26.1]} 39.
Be2 {[%clk 0:00:07.4]} 39... h5 {[%clk 0:00:25.4]} 40. Nf1 {[%clk 0:00:07.3]}
40... Qc5 {[%clk 0:00:20.3]} 41. Ne3 {[%clk 0:00:06.8]} 41... Kg8 {[%clk
0:00:20.7]} 42. Nf5 {[%clk 0:00:06.2]} 42... Rd8 {[%clk 0:00:20.3]} 43. Qc1
{[%clk 0:00:06.2]} 43... Nd3 {[%clk 0:00:16.2]} 44. Bxd3 {[%clk 0:00:05.5]}
44... cxd3 {[%clk 0:00:17.1]} 45. Qg5+ {[%clk 0:00:05.2]} 1-0

[Event "*** Titled Tuesday Blitz"]
[Site "Chess.com"]
[Date "2020.05.26"]
[Round "8"]
[White "VishnuPrasanna"]
[Black "maciek_92"]
[Result "0-1"]
[WhiteElo "2650"]
[BlackElo "2809"]
[TimeControl "180+1"]
[EndTime "11:41:36 PDT"]
[Termination "maciek_92 won by resignation"]

1. e4 {[%clk 0:03:00.9]} 1... c5 {[%clk 0:02:59.7]} 2. Nf3 {[%clk 0:03:01.3]}
2... e6 {[%clk 0:02:59.6]} 3. c4 {[%clk 0:02:58.1]} 3... Nc6 {[%clk 0:02:58.6]}
4. Be2 {[%clk 0:02:56.6]} 4... Nf6 {[%clk 0:02:58.7]} 5. Nc3 {[%clk 0:02:57.1]}
5... Be7 {[%clk 0:02:56.5]} 6. O-O {[%clk 0:02:57.1]} 6... O-O {[%clk
0:02:55.8]} 7. d4 {[%clk 0:02:57.5]} 7... cxd4 {[%clk 0:02:55.8]} 8. Nxd4 {[%clk
0:02:58.4]} 8... d6 {[%clk 0:02:55.9]} 9. Be3 {[%clk 0:02:58.2]} 9... a6 {[%clk
0:02:55.5]} 10. Nc2 {[%clk 0:02:57.6]} 10... b6 {[%clk 0:02:49.8]} 11. f4 {[%clk
0:02:58]} 11... Bb7 {[%clk 0:02:49.9]} 12. Bf3 {[%clk 0:02:58.5]} 12... Qc7
{[%clk 0:02:48.6]} 13. Rc1 {[%clk 0:02:56]} 13... Rac8 {[%clk 0:02:46.8]} 14.
Kh1 {[%clk 0:02:55.2]} 14... Nd7 {[%clk 0:02:38.4]} 15. Qe2 {[%clk 0:02:52]}
15... g6 {[%clk 0:02:22.7]} 16. Nd4 {[%clk 0:02:41.8]} 16... Nxd4 {[%clk
0:02:16.4]} 17. Bxd4 {[%clk 0:02:42]} 17... Qxc4 {[%clk 0:01:44.8]} 18. Qd2
{[%clk 0:02:21.3]} 18... e5 {[%clk 0:01:34.2]} 19. Be3 {[%clk 0:01:39.1]} 19...
exf4 {[%clk 0:00:56.6]} 20. Bxf4 {[%clk 0:01:36.2]} 20... Qe6 {[%clk 0:00:52.1]}
21. Nd5 {[%clk 0:01:33.2]} 21... Bxd5 {[%clk 0:00:51.8]} 22. exd5 {[%clk
0:01:30]} 22... Qf6 {[%clk 0:00:50.4]} 23. Bg4 {[%clk 0:01:11.9]} 23... Rxc1
{[%clk 0:00:47.9]} 24. Qxc1 {[%clk 0:01:12.3]} 24... Rd8 {[%clk 0:00:27.1]} 25.
Bh6 {[%clk 0:01:02.7]} 25... Qh4 {[%clk 0:00:20.4]} 26. h3 {[%clk 0:00:53.4]}
26... Ne5 {[%clk 0:00:18]} 27. Be2 {[%clk 0:00:41.8]} 27... g5 {[%clk
0:00:17.4]} 28. Qc7 {[%clk 0:00:32.9]} 28... Re8 {[%clk 0:00:17.1]} 29. Bxa6
{[%clk 0:00:23]} 29... Qxh6 {[%clk 0:00:15.1]} 30. Bb5 {[%clk 0:00:21.7]} 30...
Bd8 {[%clk 0:00:14.4]} 31. Qc8 {[%clk 0:00:20.9]} 31... Rf8 {[%clk 0:00:13.6]}
32. a4 {[%clk 0:00:21.3]} 32... g4 {[%clk 0:00:13.7]} 33. b4 {[%clk 0:00:20.4]}
33... gxh3 {[%clk 0:00:13.7]} 34. gxh3 {[%clk 0:00:21.3]} 34... Kh8 {[%clk
0:00:13.8]} 35. Rg1 {[%clk 0:00:21.5]} 35... Qe3 {[%clk 0:00:11]} 36. Qf5 {[%clk
0:00:20.3]} 36... Qf3+ {[%clk 0:00:08.4]} 37. Qxf3 {[%clk 0:00:19.9]} 37... Nxf3
{[%clk 0:00:09.3]} 38. Rc1 {[%clk 0:00:19]} 38... Ne5 {[%clk 0:00:08.6]} 39. Rc8
{[%clk 0:00:18.6]} 39... Kg7 {[%clk 0:00:09.5]} 40. Be2 {[%clk 0:00:17.5]} 40...
f5 {[%clk 0:00:09.8]} 41. Kg2 {[%clk 0:00:17.3]} 41... f4 {[%clk 0:00:10.4]} 42.
Bf3 {[%clk 0:00:17.8]} 42... Kf6 {[%clk 0:00:10.4]} 43. Rb8 {[%clk 0:00:17]}
43... Ke7 {[%clk 0:00:09.8]} 44. a5 {[%clk 0:00:17]} 44... bxa5 {[%clk
0:00:09.8]} 45. bxa5 {[%clk 0:00:17.9]} 45... Bxa5 {[%clk 0:00:10.4]} 46. Rb7+
{[%clk 0:00:17.6]} 46... Kf6 {[%clk 0:00:10.6]} 47. Rxh7 {[%clk 0:00:18.2]}
47... Nxf3 {[%clk 0:00:10.8]} 48. Kxf3 {[%clk 0:00:16.6]} 48... Ke5 {[%clk
0:00:11.4]} 49. Rh5+ {[%clk 0:00:17.5]} 49... Kd4 {[%clk 0:00:11.7]} 50. h4
{[%clk 0:00:18.1]} 50... Bd2 {[%clk 0:00:11.7]} 51. Rg5 {[%clk 0:00:17.7]} 51...
Rb8 {[%clk 0:00:11]} 52. h5 {[%clk 0:00:18.2]} 52... Rb3+ {[%clk 0:00:11.6]} 53.
Kg4 {[%clk 0:00:18.7]} 53... Rg3+ {[%clk 0:00:10.9]} 54. Kh4 {[%clk 0:00:17.8]}
54... Rxg5 {[%clk 0:00:11.4]} 55. Kxg5 {[%clk 0:00:18.7]} 55... f3+ {[%clk
0:00:12.1]} 56. Kg6 {[%clk 0:00:19.6]} 56... f2 {[%clk 0:00:13]} 0-1

[Event "*** Titled Tuesday Blitz"]
[Site "Chess.com"]
[Date "2020.05.26"]
[Round "8"]
[White "Zarikovs1999"]
[Black "2008king"]
[Result "1-0"]
[WhiteElo "2354"]
[BlackElo "2124"]
[TimeControl "180+1"]
[EndTime "11:41:36 PDT"]
[Termination "Zarikovs1999 won by checkmate"]

1. e4 {[%clk 0:02:57.9]} 1... e5 {[%clk 0:02:58.4]} 2. Nf3 {[%clk 0:02:56.5]}
2... Nc6 {[%clk 0:02:58]} 3. Bb5 {[%clk 0:02:57.1]} 3... a6 {[%clk 0:02:57.8]}
4. Ba4 {[%clk 0:02:57.2]} 4... Nf6 {[%clk 0:02:57.2]} 5. O-O {[%clk 0:02:57]}
5... b5 {[%clk 0:02:57]} 6. Bb3 {[%clk 0:02:56.8]} 6... Bb7 {[%clk 0:02:57.9]}
7. d3 {[%clk 0:02:50.3]} 7... Be7 {[%clk 0:02:56.1]} 8. Re1 {[%clk 0:02:48.3]}
8... d6 {[%clk 0:02:53.2]} 9. a3 {[%clk 0:02:48.1]} 9... O-O {[%clk 0:02:51.5]}
10. Nc3 {[%clk 0:02:47.8]} 10... Na5 {[%clk 0:02:51.5]} 11. Ba2 {[%clk
0:02:47.5]} 11... c5 {[%clk 0:02:52.4]} 12. Nd5 {[%clk 0:02:45.3]} 12... Bxd5
{[%clk 0:02:48.1]} 13. exd5 {[%clk 0:02:42]} 13... c4 {[%clk 0:02:48.3]} 14. b4
{[%clk 0:02:35.5]} 14... cxb3 {[%clk 0:02:45.8]} 15. cxb3 {[%clk 0:02:36.4]}
15... Nb7 {[%clk 0:02:29.9]} 16. d4 {[%clk 0:02:32.6]} 16... Nxd5 {[%clk
0:02:24.7]} 17. dxe5 {[%clk 0:02:26.1]} 17... dxe5 {[%clk 0:02:24.2]} 18. Nxe5
{[%clk 0:02:21.8]} 18... Bf6 {[%clk 0:02:14.2]} 19. Bb2 {[%clk 0:02:21.6]} 19...
Rc8 {[%clk 0:02:12]} 20. b4 {[%clk 0:02:21.5]} 20... Nf4 {[%clk 0:02:10.1]} 21.
Qf3 {[%clk 0:02:07.5]} 21... Bxe5 {[%clk 0:01:55]} 22. Bxe5 {[%clk 0:01:50.9]}
22... Nd3 {[%clk 0:01:53.6]} 23. Qxb7 {[%clk 0:01:29.3]} 23... Nxe1 {[%clk
0:01:52.5]} 24. Rxe1 {[%clk 0:01:30.2]} 24... Qd2 {[%clk 0:01:52.3]} 25. Bxf7+
{[%clk 0:01:14.9]} 25... Kh8 {[%clk 0:01:50.2]} 26. Rf1 {[%clk 0:01:03.5]} 26...
Qg5 {[%clk 0:01:44.9]} 27. f4 {[%clk 0:00:56.5]} 27... Qh6 {[%clk 0:01:15.9]}
28. Be6 {[%clk 0:00:42.2]} 28... Rce8 {[%clk 0:01:11.1]} 29. Bd6 {[%clk
0:00:15.4]} 29... Qxe6 {[%clk 0:01:06]} 30. Bxf8 {[%clk 0:00:15.2]} 30... Rxf8
{[%clk 0:01:06.9]} 31. Qf3 {[%clk 0:00:10.2]} 31... Qc4 {[%clk 0:01:06]} 32. f5
{[%clk 0:00:08.9]} 32... Qd4+ {[%clk 0:01:02.9]} 33. Kh1 {[%clk 0:00:09]} 33...
Re8 {[%clk 0:01:01.8]} 34. h3 {[%clk 0:00:06.3]} 34... h6 {[%clk 0:01:00.8]} 35.
f6 {[%clk 0:00:06.4]} 35... Rg8 {[%clk 0:00:44.1]} 36. fxg7+ {[%clk 0:00:04.2]}
36... Qxg7 {[%clk 0:00:45]} 37. Qf6 {[%clk 0:00:03.9]} 37... Ra8 {[%clk
0:00:28.9]} 38. Qxg7+ {[%clk 0:00:03.4]} 38... Kxg7 {[%clk 0:00:29.8]} 39. Rc1
{[%clk 0:00:03.8]} 39... Rd8 {[%clk 0:00:29.9]} 40. Rc6 {[%clk 0:00:03.6]} 40...
Ra8 {[%clk 0:00:29.6]} 41. Kh2 {[%clk 0:00:03.5]} 41... a5 {[%clk 0:00:29.7]}
42. Rb6 {[%clk 0:00:02.8]} 42... axb4 {[%clk 0:00:28.2]} 43. axb4 {[%clk
0:00:03.7]} 43... Ra2 {[%clk 0:00:28]} 44. Rxb5 {[%clk 0:00:04.2]} 44... Kf6
{[%clk 0:00:28.5]} 45. Rb6+ {[%clk 0:00:04.6]} 45... Kg7 {[%clk 0:00:28.7]} 46.
b5 {[%clk 0:00:05.1]} 46... Rb2 {[%clk 0:00:29]} 47. h4 {[%clk 0:00:05.7]} 47...
Rb1 {[%clk 0:00:27.9]} 48. Kh3 {[%clk 0:00:06.1]} 48... Rb3+ {[%clk 0:00:28.2]}
49. g3 {[%clk 0:00:07]} 49... Rb4 {[%clk 0:00:28.6]} 50. Rb7+ {[%clk 0:00:07.5]}
50... Kg6 {[%clk 0:00:27.9]} 51. Rb8 {[%clk 0:00:08.1]} 51... Kg7 {[%clk
0:00:27.6]} 52. Kg2 {[%clk 0:00:08.7]} 52... Rb3 {[%clk 0:00:27.4]} 53. b6
{[%clk 0:00:08.8]} 53... Rb4 {[%clk 0:00:27.4]} 54. Kf3 {[%clk 0:00:09.1]} 54...
Rb3+ {[%clk 0:00:27.7]} 55. Kf4 {[%clk 0:00:09.6]} 55... Rb4+ {[%clk 0:00:28]}
56. Ke5 {[%clk 0:00:10.2]} 56... Rb5+ {[%clk 0:00:28.6]} 57. Kd6 {[%clk
0:00:10.4]} 57... Rb3 {[%clk 0:00:29.3]} 58. b7 {[%clk 0:00:10.4]} 58... Rd3+
{[%clk 0:00:26.4]} 59. Kc5 {[%clk 0:00:10.1]} 59... Rc3+ {[%clk 0:00:26.7]} 60.
Kb4 {[%clk 0:00:09.9]} 60... Rc1 {[%clk 0:00:23.3]} 61. Rg8+ {[%clk 0:00:09.9]}
61... Kxg8 {[%clk 0:00:21.7]} 62. b8=Q+ {[%clk 0:00:10.3]} 62... Kg7 {[%clk
0:00:22.6]} 63. Qe5+ {[%clk 0:00:10]} 63... Kg6 {[%clk 0:00:23.5]} 64. Qe4+
{[%clk 0:00:10.1]} 64... Kh5 {[%clk 0:00:24]} 65. Qf5# {[%clk 0:00:09.8]} 1-0

[Event "*** Titled Tuesday Blitz"]
[Site "Chess.com"]
[Date "2020.05.26"]
[Round "8"]
[White "VerdeNotte"]
[Black "Munkhzul_Turmunkh"]
[Result "1-0"]
[WhiteElo "2779"]
[BlackElo "2582"]
[TimeControl "180+1"]
[EndTime "11:41:37 PDT"]
[Termination "VerdeNotte won on time"]

1. e4 {[%clk 0:02:18.1]} 1... c5 {[%clk 0:02:59.3]} 2. Nc3 {[%clk 0:02:13.8]}
2... Nc6 {[%clk 0:02:58.9]} 3. Bb5 {[%clk 0:02:13.1]} 3... Nd4 {[%clk
0:02:55.2]} 4. Nf3 {[%clk 0:02:12.4]} 4... Nxb5 {[%clk 0:02:41.3]} 5. Nxb5
{[%clk 0:02:11.5]} 5... d6 {[%clk 0:02:40]} 6. d4 {[%clk 0:02:10.8]} 6... cxd4
{[%clk 0:02:32.9]} 7. Qxd4 {[%clk 0:02:06.9]} 7... a6 {[%clk 0:02:26]} 8. Nc3
{[%clk 0:01:58.8]} 8... e5 {[%clk 0:02:16.2]} 9. Qb4 {[%clk 0:01:47.8]} 9... Ne7
{[%clk 0:01:57.7]} 10. Be3 {[%clk 0:01:32.2]} 10... Nc6 {[%clk 0:01:55.7]} 11.
Qb6 {[%clk 0:01:27.5]} 11... Qxb6 {[%clk 0:01:53.9]} 12. Bxb6 {[%clk 0:01:27.3]}
12... Be6 {[%clk 0:01:48.8]} 13. O-O-O {[%clk 0:01:24.5]} 13... Be7 {[%clk
0:01:48.2]} 14. Rd2 {[%clk 0:01:22.2]} 14... Rc8 {[%clk 0:01:39.6]} 15. a3
{[%clk 0:01:12.5]} 15... O-O {[%clk 0:01:32]} 16. Nd5 {[%clk 0:01:11]} 16...
Bxd5 {[%clk 0:01:24.9]} 17. Rxd5 {[%clk 0:01:08.7]} 17... Nb8 {[%clk 0:01:19]}
18. Be3 {[%clk 0:00:49.5]} 18... Nd7 {[%clk 0:01:18.4]} 19. Nd2 {[%clk
0:00:48.8]} 19... Rc7 {[%clk 0:01:03.7]} 20. Kb1 {[%clk 0:00:39.8]} 20... Rfc8
{[%clk 0:00:59.3]} 21. c3 {[%clk 0:00:40.1]} 21... g6 {[%clk 0:00:52]} 22. Rd1
{[%clk 0:00:38.5]} 22... f5 {[%clk 0:00:47.1]} 23. f3 {[%clk 0:00:38.6]} 23...
f4 {[%clk 0:00:41.3]} 24. Bf2 {[%clk 0:00:36.7]} 24... b5 {[%clk 0:00:39.7]} 25.
a4 {[%clk 0:00:26.5]} 25... Rb7 {[%clk 0:00:36.9]} 26. axb5 {[%clk 0:00:23.4]}
26... axb5 {[%clk 0:00:36.1]} 27. Kc2 {[%clk 0:00:20.6]} 27... Ra8 {[%clk
0:00:33.2]} 28. Nb3 {[%clk 0:00:20]} 28... Nf6 {[%clk 0:00:28]} 29. R5d2 {[%clk
0:00:19.7]} 29... b4 {[%clk 0:00:23.6]} 30. c4 {[%clk 0:00:17.8]} 30... Rc7
{[%clk 0:00:19.1]} 31. Kd3 {[%clk 0:00:17.9]} 31... Kf7 {[%clk 0:00:12.4]} 32.
Bh4 {[%clk 0:00:14.4]} 32... Nd7 {[%clk 0:00:10.2]} 33. Bf2 {[%clk 0:00:12.6]}
33... Ke6 {[%clk 0:00:10]} 34. Rc2 {[%clk 0:00:10.8]} 34... Rac8 {[%clk
0:00:09.5]} 35. Ra1 {[%clk 0:00:10.7]} 35... g5 {[%clk 0:00:08.9]} 36. Ra6
{[%clk 0:00:09.6]} 36... Kf7 {[%clk 0:00:07.3]} 37. Na5 {[%clk 0:00:08.3]} 37...
h5 {[%clk 0:00:05.7]} 38. b3 {[%clk 0:00:08.4]} 38... g4 {[%clk 0:00:05.5]} 39.
Ke2 {[%clk 0:00:07.2]} 39... Rg8 {[%clk 0:00:04]} 40. Rd2 {[%clk 0:00:07.4]}
40... g3 {[%clk 0:00:03.7]} 41. hxg3 {[%clk 0:00:07.2]} 41... fxg3 {[%clk
0:00:04.6]} 42. Be3 {[%clk 0:00:07.5]} 42... h4 {[%clk 0:00:05]} 43. Kf1 {[%clk
0:00:06.9]} 43... h3 {[%clk 0:00:03.7]} 44. gxh3 {[%clk 0:00:06.8]} 44... Nc5
{[%clk 0:00:03.9]} 45. Bxc5 {[%clk 0:00:06.7]} 45... Rxc5 {[%clk 0:00:04.7]} 46.
Kg2 {[%clk 0:00:05.5]} 46... Rc7 {[%clk 0:00:01.3]} 47. Rc6 {[%clk 0:00:04.5]}
47... Rg7 {[%clk 0:00:01.6]} 48. Rxc7 {[%clk 0:00:04.5]} 1-0

[Event "*** Titled Tuesday Blitz"]
[Site "Chess.com"]
[Date "2020.05.26"]
[Round "8"]
[White "1f3_2g41-0"]
[Black "sergeikim"]
[Result "1-0"]
[WhiteElo "2280"]
[BlackElo "2396"]
[TimeControl "180+1"]
[EndTime "11:41:38 PDT"]
[Termination "1f3_2g41-0 won on time"]

1. e4 {[%clk 0:03:00.9]} 1... e5 {[%clk 0:02:59.3]} 2. Nf3 {[%clk 0:03:00.4]}
2... Nc6 {[%clk 0:02:59.3]} 3. Bb5 {[%clk 0:03:00.7]} 3... a6 {[%clk 0:02:59]}
4. Ba4 {[%clk 0:03:00.3]} 4... Nf6 {[%clk 0:02:58.6]} 5. O-O {[%clk 0:03:00.9]}
5... b5 {[%clk 0:02:57.9]} 6. Bb3 {[%clk 0:03:00.3]} 6... Bc5 {[%clk 0:02:58.8]}
7. c3 {[%clk 0:02:58.1]} 7... d6 {[%clk 0:02:58.4]} 8. d4 {[%clk 0:02:58]} 8...
Bb6 {[%clk 0:02:57.8]} 9. Re1 {[%clk 0:02:44]} 9... O-O {[%clk 0:02:51.8]} 10.
h3 {[%clk 0:02:44.1]} 10... h6 {[%clk 0:02:50.9]} 11. a4 {[%clk 0:02:42.7]}
11... Bb7 {[%clk 0:02:38.6]} 12. d5 {[%clk 0:02:21.9]} 12... Ne7 {[%clk
0:02:37.7]} 13. Be3 {[%clk 0:02:17.3]} 13... Ng6 {[%clk 0:02:32.3]} 14. Bxb6
{[%clk 0:02:14.3]} 14... cxb6 {[%clk 0:02:32.2]} 15. axb5 {[%clk 0:02:14.7]}
15... axb5 {[%clk 0:02:31.5]} 16. Rxa8 {[%clk 0:02:15.2]} 16... Qxa8 {[%clk
0:02:30.5]} 17. Na3 {[%clk 0:02:15.1]} 17... Qa5 {[%clk 0:02:27.1]} 18. g3
{[%clk 0:02:01.3]} 18... Bc8 {[%clk 0:02:21.8]} 19. Kg2 {[%clk 0:01:59.1]} 19...
Bd7 {[%clk 0:02:20.6]} 20. Nc2 {[%clk 0:01:56.7]} 20... Qa8 {[%clk 0:02:11.1]}
21. Nb4 {[%clk 0:01:55.2]} 21... Qc8 {[%clk 0:02:10.1]} 22. Rh1 {[%clk
0:01:52.4]} 22... Nxe4 {[%clk 0:02:08.1]} 23. Qd3 {[%clk 0:01:35.3]} 23... Nc5
{[%clk 0:02:03.8]} 24. Qc2 {[%clk 0:01:32.7]} 24... f5 {[%clk 0:01:33]} 25. h4
{[%clk 0:00:58.8]} 25... Kh7 {[%clk 0:01:27]} 26. Ba2 {[%clk 0:00:27.3]} 26...
e4 {[%clk 0:01:08.7]} 27. Nd4 {[%clk 0:00:21.7]} 27... f4 {[%clk 0:01:08.7]} 28.
h5 {[%clk 0:00:18]} 28... Ne5 {[%clk 0:01:04.6]} 29. gxf4 {[%clk 0:00:15.4]}
29... Rxf4 {[%clk 0:01:02.5]} 30. Qd2 {[%clk 0:00:14.1]} 30... Qf8 {[%clk
0:00:50.6]} 31. Bb1 {[%clk 0:00:13]} 31... Ned3 {[%clk 0:00:42.4]} 32. Nxd3
{[%clk 0:00:12.1]} 32... exd3 {[%clk 0:00:39.4]} 33. Bxd3+ {[%clk 0:00:12.2]}
33... Kh8 {[%clk 0:00:34.4]} 34. Bg6 {[%clk 0:00:10.6]} 34... Ne4 {[%clk
0:00:25.4]} 35. Bxe4 {[%clk 0:00:09.5]} 35... Rxe4 {[%clk 0:00:25.3]} 36. Re1
{[%clk 0:00:08.1]} 36... Rg4+ {[%clk 0:00:24.4]} 37. Kf1 {[%clk 0:00:08.6]}
37... Rf4 {[%clk 0:00:21.7]} 38. Re3 {[%clk 0:00:07.4]} 38... Qf7 {[%clk
0:00:18.3]} 39. Ne6 {[%clk 0:00:07.6]} 39... Rf5 {[%clk 0:00:15]} 40. Qd4 {[%clk
0:00:04.5]} 40... Rxh5 {[%clk 0:00:12.6]} 41. Qxb6 {[%clk 0:00:03.9]} 41... Rf5
{[%clk 0:00:11.8]} 42. Qd8+ {[%clk 0:00:04.2]} 42... Kh7 {[%clk 0:00:11.2]} 43.
Re2 {[%clk 0:00:04]} 43... h5 {[%clk 0:00:08.8]} 44. Ng5+ {[%clk 0:00:03.2]}
44... Rxg5 {[%clk 0:00:07.7]} 45. Qxg5 {[%clk 0:00:04.1]} 45... Bg4 {[%clk
0:00:06.9]} 46. Re7 {[%clk 0:00:03.6]} 46... Qf8 {[%clk 0:00:03.8]} 47. Ke1
{[%clk 0:00:02.2]} 47... Bf3 {[%clk 0:00:03.2]} 48. Kd2 {[%clk 0:00:02]} 48...
Bg4 {[%clk 0:00:02.6]} 49. Ke3 {[%clk 0:00:02.5]} 1-0

[Event "*** Titled Tuesday Blitz"]
[Site "Chess.com"]
[Date "2020.05.26"]
[Round "8"]
[White "Larina_Marija"]
[Black "Justinz"]
[Result "0-1"]
[WhiteElo "2154"]
[BlackElo "2355"]
[TimeControl "180+1"]
[EndTime "11:41:39 PDT"]
[Termination "Justinz won on time"]

1. e4 {[%clk 0:03:00.9]} 1... c5 {[%clk 0:02:58.3]} 2. Nc3 {[%clk 0:03:00.6]}
2... d6 {[%clk 0:02:58.3]} 3. d4 {[%clk 0:03:00.3]} 3... cxd4 {[%clk 0:02:58.5]}
4. Qxd4 {[%clk 0:03:00.8]} 4... a6 {[%clk 0:02:58.2]} 5. b3 {[%clk 0:02:59.9]}
5... Nc6 {[%clk 0:02:58.6]} 6. Qd2 {[%clk 0:02:59.8]} 6... Nf6 {[%clk
0:02:59.2]} 7. Bb2 {[%clk 0:02:59.5]} 7... e6 {[%clk 0:02:59.5]} 8. O-O-O {[%clk
0:02:58.8]} 8... Be7 {[%clk 0:03:00]} 9. f3 {[%clk 0:02:54.7]} 9... O-O {[%clk
0:02:59.1]} 10. g4 {[%clk 0:02:54.7]} 10... b5 {[%clk 0:02:59.1]} 11. Kb1 {[%clk
0:02:41.4]} 11... Bb7 {[%clk 0:02:56.5]} 12. h4 {[%clk 0:02:40.4]} 12... b4
{[%clk 0:02:34.1]} 13. Na4 {[%clk 0:02:39]} 13... d5 {[%clk 0:02:22.3]} 14. g5
{[%clk 0:02:36.4]} 14... Nh5 {[%clk 0:02:22.1]} 15. exd5 {[%clk 0:02:28.9]}
15... exd5 {[%clk 0:02:22]} 16. Bd3 {[%clk 0:02:07.9]} 16... Re8 {[%clk
0:02:01]} 17. Ne2 {[%clk 0:02:07.5]} 17... Bf8 {[%clk 0:01:56.4]} 18. Nd4 {[%clk
0:02:06.9]} 18... Ne5 {[%clk 0:01:53.1]} 19. Bf5 {[%clk 0:01:57.7]} 19... Bc8
{[%clk 0:01:32.1]} 20. Bxc8 {[%clk 0:01:52.1]} 20... Rxc8 {[%clk 0:01:32.3]} 21.
f4 {[%clk 0:01:48.9]} 21... Ng4 {[%clk 0:01:32]} 22. Nf5 {[%clk 0:01:40]} 22...
g6 {[%clk 0:01:23.6]} 23. Qd4 {[%clk 0:01:28.9]} 23... f6 {[%clk 0:01:23.6]} 24.
Nh6+ {[%clk 0:01:19.5]} 24... Nxh6 {[%clk 0:01:18.9]} 25. gxh6 {[%clk
0:01:20.4]} 25... Bxh6 {[%clk 0:01:19.4]} 26. f5 {[%clk 0:01:17.4]} 26... Re4
{[%clk 0:01:14.8]} 27. Qxd5+ {[%clk 0:00:51.6]} 27... Qxd5 {[%clk 0:01:13.8]}
28. Rxd5 {[%clk 0:00:52.5]} 28... Ng3 {[%clk 0:01:13.8]} 29. Rg1 {[%clk
0:00:51.3]} 29... Bf4 {[%clk 0:01:09.5]} 30. fxg6 {[%clk 0:00:49.7]} 30... hxg6
{[%clk 0:01:09.2]} 31. Bxf6 {[%clk 0:00:47.7]} 31... Kf7 {[%clk 0:01:06.9]} 32.
Bg5 {[%clk 0:00:41.2]} 32... Bb8 {[%clk 0:01:06.6]} 33. Rd7+ {[%clk 0:00:39.3]}
33... Ke6 {[%clk 0:01:05.4]} 34. Re7+ {[%clk 0:00:38.9]} 34... Kf5 {[%clk
0:01:04.1]} 35. Rf7+ {[%clk 0:00:35.7]} 35... Kg4 {[%clk 0:01:03]} 36. Nb6
{[%clk 0:00:31.8]} 36... Rce8 {[%clk 0:01:02.8]} 37. Nd7 {[%clk 0:00:29]} 37...
Re1+ {[%clk 0:01:01.1]} 38. Rxe1 {[%clk 0:00:29.1]} 38... Rxe1+ {[%clk
0:01:00.7]} 39. Kb2 {[%clk 0:00:29.4]} 39... Bd6 {[%clk 0:01:00.8]} 40. Rf6
{[%clk 0:00:23.9]} 40... Rd1 {[%clk 0:00:51.8]} 41. Rxg6 {[%clk 0:00:20.2]}
41... Kf5 {[%clk 0:00:47.8]} 42. Rf6+ {[%clk 0:00:19]} 42... Kg4 {[%clk
0:00:48]} 43. a4 {[%clk 0:00:14.4]} 43... Ne4 {[%clk 0:00:47.7]} 44. Rg6 {[%clk
0:00:10.3]} 44... Kf5 {[%clk 0:00:46.2]} 45. Rg8 {[%clk 0:00:07.6]} 45... Nc3
{[%clk 0:00:44.7]} 46. Bc1 {[%clk 0:00:07.7]} 46... Be7 {[%clk 0:00:42.3]} 47.
Nb6 {[%clk 0:00:02.6]} 47... Bf6 {[%clk 0:00:42]} 48. Rf8 {[%clk 0:00:02.2]}
48... Nxa4+ {[%clk 0:00:41.1]} 49. Ka2 {[%clk 0:00:02.4]} 49... Nxb6 {[%clk
0:00:40]} 50. Bb2 {[%clk 0:00:02.3]} 50... Nd7 {[%clk 0:00:39.6]} 51. Rf7 {[%clk
0:00:01.9]} 51... Ke6 {[%clk 0:00:38.9]} 52. Rh7 {[%clk 0:00:01.2]} 52... Bxb2
{[%clk 0:00:37.8]} 53. Kxb2 {[%clk 0:00:02.1]} 53... Rh1 {[%clk 0:00:35.6]} 0-1